lending/lending_fUSD_20250315
["ID","MTS","AMOUNT","RATE_DAILY","PERIOD"]
[356180190,1742029837853,-200.0,0.00036452,2]
[356180191,1742029837862,-200.0,0.00036452,2]
[356180192,1742029837872,-200.0,0.00036452,2]
[356180193,1742029837881,-200.0,0.00036452,2]
[356180194,1742029837891,-200.0,0.00036452,2]
[356180195,1742029837900,-122.43632822,0.00036452,2]
[356180196,1742029837912,-77.56367178,0.00036452,2]
[356180197,1742029837922,-200.0,0.00036452,2]
[356180198,1742029837931,-200.0,0.00036452,2]
[356180199,1742029837941,-200.0,0.00036452,2]
[356180200,1742029837950,-200.0,0.00036452,2]
[356180201,1742029837959,-200.0,0.00036452,2]
[356180202,1742029837968,-200.0,0.00036452,2]
[356180203,1742029837978,-83.75812601,0.00036452,2]
[356180204,1742029837990,-116.24187399,0.00036452,2]
[356180205,1742029837999,-200.0,0.00036452,2]
[356180206,1742029838009,-200.0,0.00036452,2]
[356180207,1742029838018,-200.0,0.00036452,2]
[356180208,1742029838028,-200.0,0.00036452,2]
[356180209,1742029838038,-500.0,0.00036452,120]
[356180210,1742029838047,-94.68382319,0.00036452,120]
[356180218,1742029839641,-150.0,0.00036382,2]
[356180219,1742029839650,-150.0,0.00036443,2]
[356180220,1742029839660,-294.0,0.00036452,120]
[356180226,1742029842469,-150.0,0.00036232,2]
[356180227,1742029842478,-150.0,0.00036241,2]
[356180228,1742029842487,-150.0,0.00036249,2]
[356180230,1742029842498,-150.0,0.00036254,2]
[356180232,1742029842507,-150.0,0.00036255,2]
[356180234,1742029842517,-150.0,0.00036258,2]
[356180236,1742029842526,-150.0,0.00036282,2]
[356180238,1742029842537,-150.0,0.00036283,2]
[356180240,1742029842549,-150.0,0.00036283,2]
[356180242,1742029842559,-150.0,0.00036286,2]
[356180245,1742029842569,-150.0,0.00036289,2]
[356180246,1742029842579,-150.0,0.00036334,2]
[356180247,1742029842589,-150.0,0.00036355,2]
[356180248,1742029842598,-150.0,0.0003636,2]
[356180249,1742029842607,-150.0,0.00036362,2]
[356180250,1742029842617,-150.0,0.00036376,2]
[356180251,1742029842626,-150.0,0.00036383,2]
[356180252,1742029842635,-150.0,0.00036393,2]
[356180253,1742029842644,-150.0,0.00036397,2]
[356180254,1742029842653,-150.0,0.0003642,2]
[356180255,1742029842663,-150.0,0.00036421,2]
[356180256,1742029842672,-150.0,0.00036421,2]
[356180257,1742029842681,-150.0,0.00036425,2]
[356180258,1742029842690,-150.0,0.00036444,2]
[356180259,1742029842700,-153.31617681,0.00036452,120]
[356180260,1742029842709,-200.0,0.00036452,2]
[356180261,1742029842718,-200.0,0.00036452,2]
[356180262,1742029842727,-200.0,0.00036452,2]
[356180263,1742029842736,-200.0,0.00036452,2]
[356180264,1742029842745,-200.0,0.00036452,2]
[356180265,1742029842755,-149.04882384,0.00036452,2]
[356180266,1742029842767,-50.95117616,0.00036452,2]
[356180267,1742029842777,-200.0,0.00036452,2]
[356180268,1742029842785,-228.0,0.00036452,2]
[356180269,1742029842796,-150.0,0.00036463,2]
[356180270,1742029842805,-150.0,0.0003647,2]
[356180271,1742029842815,-150.0,0.00036472,2]
[356180272,1742029842825,-349.3347,0.00036488,2]
[356180273,1742029842834,-2184.43885,0.00036488,30]
[356180275,1742029842843,-1047.01713137,0.000365,120]
[356180277,1742029842852,-207.61,0.00036509,2]
[356180279,1742029842861,-3298.34810247,0.00036588,2]
[356180281,1742029842872,-11210.17049753,0.00036588,2]
[356180283,1742029842882,-207.61,0.00036603,2]
[356180285,1742029842891,-2184.43885,0.00036688,30]
[356180287,1742029842901,-207.61,0.00036696,2]
[356180289,1742029842910,-159.7923493,0.00036728,2]
[356180290,1742029842920,-207.61,0.0003679,2]
[356180291,1742029842929,-207.61,0.00036884,2]
[356180292,1742029842939,-2184.43885,0.00036888,30]
[356180294,1742029842948,-482.68540908,0.00036972,2]
[356180295,1742029842957,-500.0,0.00036973,5]
[356180296,1742029842967,-160.06323211,0.00036973,5]
[356180297,1742029842976,-207.61,0.00036978,2]
[356180298,1742029842985,-71457.0961813,0.0003699,3]
[356180299,1742029842994,-104055.76611731,0.00037,2]
[356180300,1742029843022,-366.81343156,0.00037,2]
[356180301,1742029845655,-824.081711,0.00037,2]
[356180305,1742030614723,250.0,9e-05,2]
[356180306,1742030616551,-300.0,0.00011,2]
[356180307,1742030619207,-350.0,0.00013,2]
[356180308,1742030709565,-297.05605156,0.0001,2]
[356180310,1742030724266,-166.03096226,0.0001,2]
[356180311,1742030725866,-194.85218507,0.0001,2]
[356180312,1742030726985,-194.85218507,0.0001,2]
[356180313,1742030733806,-450.50638178,0.0001,2]
[356180314,1742030785670,9569.2514357,9e-05,4]
[356180782,1742030826609,-150.0,9.999e-05,2]
[356180821,1742030841012,-733.25636779,9.9e-05,3]
[356180822,1742030842839,-200.0,9.9e-05,3]
[356180823,1742030847551,-466.74363221,9.9e-05,3]
[356180824,1742030847573,-140.43599334,9.999e-05,2]
[356180825,1742030851121,-220.44715399,9.999e-05,2]
[356180826,1742030851146,-129.55284601,0.0001,2]
[356180827,1742030853745,-150.0,0.0001,2]
[356180828,1742030867200,-157.0,9.999e-05,2]
[356180829,1742030880574,-150.0,9.999e-05,2]
[356180831,1742030914145,-193.0,9.999e-05,2]
[356180832,1742030914173,-488.96470389,0.0001,2]
[356180834,1742030914204,-4162.61225574,0.0001,2]
[356180841,1742030914378,-4844.57695963,0.0001,2]
[356180844,1742030914436,-914.46456928,0.0001,2]
[356180876,1742031031640,-244.48235195,0.0001,2]
[356180877,1742031031650,-408.24840366,0.0001,2]
[356180878,1742031031661,-288369.35741462,0.0001,2]
[356180879,1742031031695,-1523.70691183,0.0001,2]
[356180880,1742031031751,-1607.2,0.0001,2]
[356180881,1742031031762,-16117.16191846,0.0001,2]
[356180882,1742031031774,-75872.12164502,0.0001,2]
[356180883,1742031031785,-38323.25929796,0.0001,2]
[356180884,1742031031859,-17259.14400613,0.0001,2]
[356180902,1742031032285,-2401.11058956,0.0001,2]
[356180904,1742031032296,-9757.12817506,0.0001,2]
[356180907,1742031032311,-4086.06402337,0.0001,2]
[356180936,1742031037482,-18532.30639688,0.0001,2]
[356180938,1742031037494,-1473.85884344,0.0001,2]
[356180940,1742031037534,-7496.75202674,0.0001,2]
[356180941,1742031037546,-260.58,0.0001,2]
[356180942,1742031037591,-589.22609992,0.0001,2]
[356180943,1742031037702,-9898.36913504,0.0001,2]
[356180947,1742031039726,-3445.74720309,0.0001,2]
[356180948,1742031039738,-4930.9037663,0.0001,2]
[356180949,1742031040031,-910.10274327,0.0001,2]
[356180950,1742031040047,-5559.68,0.0001,2]
[356180951,1742031040066,-607.46602351,0.0001,2]
[356180952,1742031040161,-475.97838817,0.0001,2]
[356180953,1742031040172,-1000.0,0.0001,2]
[356180954,1742031040277,-867.06822804,0.0001,2]
[356180955,1742031040815,-2186.23539289,0.0001,2]
[356180975,1742031043088,-3447.51354814,0.0001,2]
[356180976,1742031043104,-5189.4370075,0.0001,2]
[356181004,1742031045625,-8850.72486,0.0001,2]
[356181006,1742031045636,-13396.0452944,0.0001,2]
[356181007,1742031045787,-2717.1631246,0.0001,2]
[356181008,1742031510590,-500.0,9.8e-05,2]
[356181025,1742032231775,-404.099,9.8e-05,2]
[356181026,1742032231785,-550.0,9.886e-05,2]
[356181027,1742032231795,-150.0,9.886e-05,2]
[356181028,1742032231804,-167.77425175,9.973e-05,2]
[356181029,1742032231813,-160.063232,9.973e-05,2]
[356181030,1742032231822,-150.0,9.999e-05,2]
[356181031,1742032231831,-675.08243847,0.0001,2]
[356181032,1742032231842,-18181.52657778,0.0001,2]
[356181033,1742032231939,-409.34373123,0.0001,2]
[356181034,1742032231951,-766.16752,0.0001,2]
[356181035,1742032231963,-206155.38149342,0.0001,2]
[356181036,1742032231974,-77021.14962857,0.0001,2]
[356181037,1742032231985,-883.48900585,0.0001,2]
[356181038,1742032231997,-259.49094404,0.0001,2]
[356181039,1742032232012,-343.68914424,0.0001,2]
[356181040,1742032232023,-439.82856113,0.0001,2]
[356181044,1742032232136,-3917.8,0.0001,2]
[356181045,1742032232148,-306406.4124495,0.0001,2]
[356181046,1742032232159,-207336.00250908,0.0001,2]
[356181048,1742032232171,-470.18349059,0.0001,2]
[356181049,1742032232183,-257.34265104,0.0001,2]
[356181226,1742032237773,-2481.16289941,0.0001,2]
[356181227,1742032237786,-309.00000075,0.0001,2]
[356181231,1742032239962,-8865.74642958,9.99e-05,2]
[356181232,1742032239972,-7412.9082033,0.0001,2]
[356181233,1742032239983,-4114.14462831,0.0001,2]
[356181234,1742032239994,-534.19909986,0.0001,2]
[356181235,1742032240099,-0.00140528,0.0001,2]
[356181236,1742032240135,-67104.6095,0.0001,2]
[356181237,1742032240299,-592.33701055,0.0001,2]
[356181238,1742032240311,-369.0,0.0001,2]
[356181239,1742032240322,-658.84877281,0.0001,2]
[356181254,1742032246238,-520.38152683,0.0001,2]
[356181255,1742032246255,-644.52882462,0.0001,2]
[356181256,1742032246271,-18007.74515676,0.0001,2]
[356181257,1742032246279,-59800.30910197,0.0001,2]
[356181258,1742032420307,250.0,9e-05,2]
[356181259,1742032737513,-1300.0,0.0001,3]
[356181260,1742032752019,-696.02656301,9.999e-05,2]
[356181261,1742032752043,-150.0,9.999e-05,2]
[356181262,1742032752067,-150.0,9.999e-05,2]
[356181263,1742032752090,-68395.15409545,0.0001,2]
[356181264,1742032752112,-283.74716586,0.0001,2]
[356181265,1742032752137,-175.35120356,0.0001,2]
[356181266,1742032752159,-151.7949,0.0001,2]
[356181267,1742033071146,151.79491,0.0001,2]
[356181273,1742033390023,151.79491,0.0001,2]
[356181278,1742033431947,-550.0,0.0001078,2]
[356181279,1742033431957,-83.91785618,0.0001078,2]
[356181280,1742033431969,-69.46837869,0.0001078,2]
[356181281,1742033431980,-150.0,0.00010999,2]
[356181282,1742033431990,-150.0,0.00010999,2]
[356181283,1742033431999,-300.0,0.00011,2]
[356181284,1742033432009,-151.79491,0.00015,2]
[356181285,1742033432018,-158.0,0.00015456,5]
[356181286,1742033432028,-258.77671131,0.00018143,3]
[356181287,1742033432047,-1963.01838273,0.00018143,3]
[356181288,1742033432057,-2221.79509404,0.00018143,3]
[356181289,1742033432066,-153.97,0.000186,2]
[356181290,1742033432076,-2520.12641088,0.000189,2]
[356181291,1742033432085,-501.0,0.00020822,2]
[356181292,1742033432095,-3017.2,0.00021757,2]
[356181293,1742033432104,-3698.81,0.00021757,2]
[356181294,1742033432114,-299.99,0.00021757,7]
[356181295,1742033432124,-8759.57,0.00021757,2]
[356181296,1742033432133,-150.99,0.00021757,2]
[356181297,1742033432143,-1668.30779258,0.00021757,2]
[356181298,1742033432160,-1198.65,0.00021757,2]
[356181299,1742033432172,-152.08220742,0.00021757,2]
[356181300,1742033432181,-801.35779258,0.00021757,2]
[356181301,1742033432193,-505.20216287,0.00021757,2]
[356181302,1742033432205,-1222.65758095,0.00021757,2]
[356181303,1742033432334,-4871.1924636,0.00021757,2]
[356181304,1742033432347,-1221.81,0.00021757,2]
[356181305,1742033432357,-344.05,0.00023255,2]
[356181306,1742033432367,-409.10819884,0.00024256,6]
[356181307,1742033432378,-1017.68880116,0.00024256,6]
[356181308,1742033432388,-181.04474945,0.00024256,6]
[356181309,1742033432397,-154.54,0.0002509,2]
[356181310,1742033432407,-1000.0,0.00025097,2]
[356181311,1742033432416,-152.6,0.00025124,30]
[356181312,1742033432426,-1851.73,0.00025376,2]
[356181313,1742033432435,-200.0,0.00025447,2]
[356181314,1742033432445,-358.37,0.00025476,120]
[356181315,1742033432454,-240.11,0.00025501,2]
[356181316,1742033432463,-263.49844672,0.00025519,2]
[356181317,1742033432474,-80.55155328,0.00025519,2]
[356181318,1742033432483,-164.21,0.00025611,2]
[356181319,1742033432492,-417.17,0.00025628,2]
[356181320,1742033432501,-164.21,0.00025678,2]
[356181321,1742033432744,-164.21,0.00025746,2]
[356181322,1742033432754,-164.21,0.00025813,2]
[356181323,1742033432764,-456.92,0.00025815,120]
[356181324,1742033432774,-4172.44407792,0.0002582,2]
[356181328,1742033438020,-243.34,0.00025753,2]
[356181329,1742033438030,-2843.36903572,0.0002582,2]
[356181330,1742033438042,-3031.21886145,0.0002582,2]
[356181331,1742033438131,-468.24628978,0.0002582,2]
[356181332,1742033438189,-13384.72173513,0.0002582,2]
[356181333,1742033438199,-164.21,0.00025881,2]
[356181334,1742033438209,-2000.0,0.00025885,2]
[356181335,1742033438219,-250.0,0.00025944,2]
[356181336,1742033438228,-164.21,0.00025948,2]
[356181337,1742033438237,-334.4,0.00025961,2]
[356181339,1742033438248,-500.0,0.00025963,2]
[356181341,1742033438257,-634.17,0.0002597,2]
[356181343,1742033438267,-164.21,0.00026015,2]
[356181344,1742033438277,-334.4,0.00026029,2]
[356181345,1742033438287,-164.21,0.00026083,2]
[356181346,1742033438297,-150.0,0.00026087,2]
[356181347,1742033438307,-334.4,0.00026098,2]
[356181348,1742033438317,-164.21,0.0002615,2]
[356181349,1742033438327,-334.4,0.00026166,2]
[356181350,1742033438337,-200.0,0.00026181,2]
[356181351,1742033438350,-164.21,0.00026218,2]
[356181352,1742033438360,-334.4,0.00026234,2]
[356181353,1742033438369,-156.39,0.0002625,2]
[356181354,1742033438379,-164.21,0.00026285,2]
[356181355,1742033438389,-334.4,0.00026303,2]
[356181356,1742033438399,-164.21,0.00026352,2]
[356181357,1742033438409,-334.4,0.00026371,2]
[356181358,1742033438419,-164.21,0.0002642,2]
[356181359,1742033438429,-334.4,0.00026439,2]
[356181360,1742033438438,-164.21,0.00026487,2]
[356181362,1742033438448,-334.4,0.00026508,2]
[356181364,1742033438458,-164.21,0.00026555,2]
[356181366,1742033438468,-334.4,0.00026576,2]
[356181368,1742033438477,-164.21,0.00026622,2]
[356181369,1742033438487,-334.4,0.00026644,2]
[356181370,1742033438496,-164.21,0.00026689,2]
[356181371,1742033438506,-334.4,0.00026713,2]
[356181372,1742033438515,-164.21,0.00026757,2]
[356181373,1742033438525,-334.4,0.00026781,2]
[356181374,1742033438534,-164.21,0.00026824,2]
[356181375,1742033438544,-160.41,0.00026848,2]
[356181376,1742033438553,-334.4,0.00026849,2]
[356181377,1742033438563,-655.22,0.00026849,2]
[356181378,1742033438573,-244.7,0.00026849,2]
[356181379,1742033438583,-174.23,0.00026849,2]
[356181380,1742033438592,-164.21,0.00026892,2]
[356181381,1742033438602,-334.4,0.00026918,2]
[356181382,1742033438611,-334.4,0.00026986,2]
[356181383,1742033438621,-334.4,0.00027054,2]
[356181384,1742033438631,-161.00971053,0.0002708,2]
[356181385,1742033438641,-334.4,0.00027122,2]
[356181386,1742033438651,-334.4,0.00027191,2]
[356181387,1742033438662,-334.4,0.00027259,2]
[356181388,1742033438672,-500.0,0.0002762,5]
[356181389,1742033438682,-159.82,0.00027714,2]
[356181390,1742033438691,-344.05,0.00027783,2]
[356181391,1742033438701,-3000.0,0.000279,2]
[356181392,1742033438710,-342.57,0.00028,30]
[356181393,1742033438720,-159.82,0.0002806,2]
[356181394,1742033438730,-1000.0,0.00028234,2]
[356181395,1742033438739,-251.025,0.00028276,2]
[356181396,1742033438748,-159.82,0.00028407,2]
[356181397,1742033438757,-358.37,0.0002866,120]
[356181398,1742033438766,-159.82,0.00028753,2]
[356181399,1742033438775,-1000.0,0.00028767,120]
[356181400,1742033438785,-1000.0,0.00028767,120]
[356181401,1742033438795,-1000.0,0.00028767,120]
[356181402,1742033438804,-1000.0,0.00028767,120]
[356181403,1742033438814,-1000.0,0.00028767,120]
[356181404,1742033438823,-1000.0,0.00028767,120]
[356181405,1742033438833,-1000.0,0.00028767,120]
[356181406,1742033438842,-456.92,0.00029042,120]
[356181407,1742033438851,-159.82,0.00029099,2]
[356181408,1742033438861,-1257.0,0.00029187,2]
[356181409,1742033438870,-154.54,0.00029335,2]
[356181410,1742033438880,-1257.0,0.00029488,2]
[356181411,1742033438889,-160.41,0.00029533,2]
[356181412,1742033438900,-7732.08422212,0.00029578,2]
[356181413,1742033438909,-7500.000001,0.00029578,30]
[356181414,1742033438919,-831.91820415,0.00029578,120]
[356181415,1742033438928,-20000.0,0.00029578,120]
[356181416,1742033438938,-1257.0,0.00029789,2]
[356181417,1742033438948,-9370.94107168,0.0002987,2]
[356181418,1742033438958,-344.05,0.00030046,2]
[356181419,1742033438968,-1257.0,0.0003009,2]
[356181420,1742033438977,-151.0,0.00030372,7]
[356181421,1742033438986,-151.91552,0.00030372,7]
[356181422,1742033438996,-1257.0,0.0003039,2]
[356181423,1742033439006,-150.91499657,0.00030414,2]
[356181424,1742033439015,-160.37714,0.00030514,7]
[356181425,1742033439025,-151.0,0.00030514,7]
[356181426,1742033439034,-1257.0,0.00030691,2]
[356181427,1742033439044,-3000.0,0.000307,2]
[356181428,1742033439054,-1257.0,0.00030992,2]
[356181429,1742033439065,-150.91499657,0.00031266,2]
[356181430,1742033439075,-1000.0,0.00031372,2]
[356181431,1742033439085,-1777.0,0.00031802,5]
[356181432,1742033439095,-358.37,0.00031844,120]
[356181433,1742033439104,-150.91499657,0.00032118,2]
[356181434,1742033439114,-160.41,0.00032218,2]
[356181435,1742033439124,-456.92,0.00032269,120]
[356181436,1742033439134,-344.05,0.0003231,2]
[356181437,1742033439145,-207.0,0.0003248,2]
[356181438,1742033439155,-655.22,0.00032646,2]
[356181439,1742033439165,-244.7,0.00032646,2]
[356181440,1742033439174,-174.23,0.00032646,2]
[356181441,1742033439184,-213.0,0.0003278,2]
[356181442,1742033439193,-150.91499657,0.0003297,2]
[356181443,1742033439203,-213.0,0.000333,2]
[356181444,1742033439213,-510.886703,0.00033311,120]
[356181445,1742033439223,-320.533962,0.00033311,120]
[356181446,1742033439232,-152.6,0.00033334,120]
[356181447,1742033439241,-3000.0,0.000334,2]
[356181448,1742033439251,-12423.59807778,0.000334,2]
[356181449,1742033439260,-174.78,0.000335,31]
[356181450,1742033439270,-174.78,0.000335,31]
[356181451,1742033439280,-174.78,0.000335,31]
[356181452,1742033439289,-174.78,0.000335,31]
[356181453,1742033439299,-174.78,0.000335,31]
[356181454,1742033439309,-174.78,0.000335,31]
[356181455,1742033439319,-174.78,0.000335,31]
[356181456,1742033439329,-174.78,0.000335,31]
[356181457,1742033439343,-174.78,0.000335,31]
[356181458,1742033439352,-174.78,0.000335,31]
[356181459,1742033439363,-174.78,0.000335,31]
[356181460,1742033439372,-174.78,0.000335,31]
[356181461,1742033439383,-151.0,0.00033508,7]
[356181462,1742033439393,-151.0,0.00033518,7]
[356181463,1742033439403,-151.0,0.00033518,7]
[356181464,1742033439413,-151.0,0.00033528,7]
[356181465,1742033439423,-36380.76823555,0.00033528,2]
[356181466,1742033439432,-154.54,0.00033579,2]
[356181467,1742033439442,-208.0,0.0003361,30]
[356181468,1742033439452,-207.0,0.0003361,2]
[356181469,1742033439462,-150.91499657,0.00033822,2]
[356181470,1742033439471,-213.0,0.0003383,2]
[356181471,1742033439480,-246.65938808,0.00034143,14]
[356181472,1742033439490,-174.78,0.000343,31]
[356181473,1742033439500,-174.78,0.000343,31]
[356181474,1742033439510,-174.78,0.000343,31]
[356181475,1742033439520,-174.78,0.000343,31]
[356181476,1742033439530,-174.78,0.000343,31]
[356181477,1742033439540,-174.78,0.000343,31]
[356181478,1742033439550,-174.78,0.000343,31]
[356181479,1742033439559,-174.78,0.000343,31]
[356181480,1742033439569,-174.78,0.000343,31]
[356181481,1742033439579,-174.78,0.000343,31]
[356181482,1742033439589,-174.78,0.000343,31]
[356181483,1742033439598,-174.78,0.000343,31]
[356181484,1742033439608,-174.78,0.000343,31]
[356181485,1742033439617,-174.78,0.000343,31]
[356181486,1742033439627,-174.78,0.000343,31]
[356181487,1742033439636,-174.78,0.000343,31]
[356181488,1742033439646,-174.78,0.000343,31]
[356181489,1742033439655,-174.78,0.000343,31]
[356181490,1742033439664,-174.78,0.000343,31]
[356181491,1742033439674,-174.78,0.000343,31]
[356181492,1742033439683,-174.78,0.000343,31]
[356181493,1742033439693,-174.78,0.000343,31]
[356181494,1742033439703,-174.78,0.000343,31]
[356181495,1742033439714,-174.78,0.000343,31]
[356181496,1742033439724,-213.0,0.0003436,2]
[356181497,1742033439734,-1000.0,0.00034399,2]
[356181498,1742033439744,-2500.0,0.00034399,2]
[356181499,1742033439755,-151.0,0.00034466,7]
[356181500,1742033439765,-151.0,0.00034466,7]
[356181501,1742033439774,-500.0,0.00034473,5]
[356181502,1742033439784,-500.0,0.00034473,5]
[356181503,1742033439793,-155.10947003,0.00034473,5]
[356181504,1742033439803,-40741.0642,0.00034499,2]
[356181506,1742033439812,-151.0,0.000345,7]
[356181507,1742033439821,-1000.0,0.00034509,2]
[356181508,1742033439831,-500.0,0.00034573,5]
[356181509,1742033439840,-344.05,0.00034574,2]
[356181510,1742033439850,-151.0,0.00034576,7]
[356181511,1742033439859,-6936.01287993,0.00034596,2]
[356181512,1742033439869,-150.91499657,0.00034675,2]
[356181513,1742033439879,-208.0,0.0003474,30]
[356181514,1742033439888,-207.0,0.0003474,2]
[356181515,1742033439897,-1111.62,0.00034836,2]
[356181516,1742033439907,-213.0,0.0003489,2]
[356181517,1742033439916,-160.41,0.00034902,2]
[356181518,1742033439926,-12423.59807773,0.00034914,2]
[356181519,1742033439936,-200.0,0.00035,2]
[356181520,1742033439945,-1490.79005703,0.00035,120]
[356181521,1742033439960,-18509.20994297,0.00035,120]
[356181522,1742033439970,-450.82830199,0.00035,2]
[356181523,1742033439980,-358.37,0.00035029,120]
[356181524,1742033439990,-174.78,0.000352,31]
[356181525,1742033439999,-174.78,0.000352,31]
[356181526,1742033440009,-174.78,0.000352,31]
[356181527,1742033440018,-174.78,0.000352,31]
[356181528,1742033440027,-174.78,0.000352,31]
[356181529,1742033440037,-174.78,0.000352,31]
[356181530,1742033440046,-174.78,0.000352,31]
[356181531,1742033440055,-174.78,0.000352,31]
[356181532,1742033440067,-174.78,0.000352,31]
[356181533,1742033440076,-174.78,0.000352,31]
[356181534,1742033440086,-174.78,0.000352,31]
[356181535,1742033440095,-174.78,0.000352,31]
[356181536,1742033440105,-174.78,0.000352,31]
[356181537,1742033440115,-174.78,0.000352,31]
[356181538,1742033440125,-174.78,0.000352,31]
[356181539,1742033440134,-174.78,0.000352,31]
[356181540,1742033440144,-174.78,0.000352,31]
[356181541,1742033440154,-174.78,0.000352,31]
[356181542,1742033440164,-174.78,0.000352,31]
[356181543,1742033440174,-174.78,0.000352,31]
[356181544,1742033440185,-174.78,0.000352,31]
[356181545,1742033440195,-174.78,0.000352,31]
[356181546,1742033440205,-174.78,0.000352,31]
[356181547,1742033440214,-174.78,0.000352,31]
[356181548,1742033440224,-151.0,0.00035227,7]
[356181549,1742033440234,-151.0,0.00035227,7]
[356181550,1742033440244,-151.0,0.00035227,7]
[356181551,1742033440253,-151.0,0.00035236,7]
[356181552,1742033440263,-151.0,0.00035236,7]
[356181553,1742033440273,-151.0,0.00035247,7]
[356181554,1742033440283,-151.0,0.00035256,7]
[356181555,1742033440292,-27756.30823298,0.00035277,2]
[356181556,1742033440669,-566.74750002,0.00035277,2]
[356181557,1742033440903,-2452.45000008,0.00035277,2]
[356181558,1742033440921,-2389.69999988,0.00035277,2]
[356181564,1742033443045,-949.52637721,0.00035277,2]
[356181565,1742033443109,-12948.93893549,0.00035277,2]
[356181566,1742033443119,-151.0,0.00035277,7]
[356181567,1742033443129,-5194.3081122,0.0003532,2]
[356181568,1742033443138,-213.0,0.0003542,2]
[356181569,1742033443148,-456.92,0.00035496,120]
[356181570,1742033443158,-1851.73,0.00035526,2]
[356181571,1742033443169,-150.91499657,0.00035527,2]
[356181572,1742033443178,-150.0,0.00035547,2]
[356181573,1742033443188,-1000.0,0.00035621,7]
[356181574,1742033443198,-1000.0,0.00035649,7]
[356181575,1742033443208,-1000.0,0.00035702,7]
[356181576,1742033443218,-150.0,0.00035736,2]
[356181577,1742033443228,-150.0,0.00035751,2]
[356181578,1742033443238,-1000.0,0.00035778,7]
[356181579,1742033443247,-150.0,0.00035788,2]
[356181580,1742033443257,-150.0,0.00035822,2]
[356181581,1742033443266,-150.0,0.00035856,2]
[356181582,1742033443276,-10052.9126568,0.00035864,2]
[356181583,1742033443285,-208.0,0.0003587,30]
[356181584,1742033443295,-207.0,0.0003587,2]
[356181585,1742033443304,-150.0,0.00035874,2]
[356181586,1742033443314,-1403.3804355,0.00035889,4]
[356181587,1742033443322,-1000.0,0.00035937,7]
[356181588,1742033443332,-213.0,0.0003594,2]
[356181589,1742033443343,-150.0,0.00035966,2]
[356181590,1742033443354,-150.0,0.00035982,2]
[356181591,1742033443363,-150.0,0.00035996,2]
[356181592,1742033443373,-150.0,0.00035998,2]
[356181593,1742033443382,-200.0,0.00036,2]
[356181595,1742033443393,-415.45745669,0.00036,2]
[356181596,1742033443402,-174.78,0.00036,31]
[356181597,1742033443411,-174.78,0.00036,31]
[356181598,1742033443420,-174.78,0.00036,31]
[356181599,1742033443430,-174.78,0.00036,31]
[356181600,1742033443439,-174.78,0.00036,31]
[356181601,1742033443448,-174.78,0.00036,31]
[356181602,1742033443459,-174.78,0.00036,31]
[356181603,1742033443467,-174.78,0.00036,31]
[356181605,1742033443476,-174.78,0.00036,31]
[356181607,1742033443486,-174.78,0.00036,31]
[356181608,1742033443495,-174.78,0.00036,31]
[356181610,1742033443504,-174.78,0.00036,31]
[356181611,1742033443513,-174.78,0.00036,31]